[Event "Titled Tuesday Blitz September 14 2021"]
[White "Vasquez Schroeder, Rodrigo"]
[Black "Andreikin, Dmitry"]
[WhiteFideId "3400042"]
[BlackFideId "4158814"]
[WhiteElo "2568"]
[BlackElo "2736"]
[Result "0-1"]
[Round "06"]
[TimeControl "180+1"]
[Date "2021.09.15"]
[WhiteClock "0:00:14"]
[BlackClock "0:00:09"]

1. e4 {[%clk 0:03:00]}  c5 {[%clk 0:03:00]} 2. Nf3 {[%clk 0:02:59]}  Nc6 {[%clk 0:03:00]} 3. Bb5 {[%clk 0:02:58]}  Nf6 {[%clk 0:02:58]} 4. Bxc6 {[%clk 0:02:56]}  dxc6 {[%clk 0:02:58]} 5. d3 {[%clk 0:02:57]}  Bg4 {[%clk 0:02:57]} 6. h3 {[%clk 0:02:53]}  Bh5 {[%clk 0:02:58]} 7. Nbd2 {[%clk 0:02:52]}  Nd7 {[%clk 0:02:55]} 8. Nf1 {[%clk 0:02:50]}  e5 {[%clk 0:02:52]} 9. Ng3 {[%clk 0:02:48]}  Bg6 {[%clk 0:02:53]} 10. b3 {[%clk 0:02:47]}  f6 {[%clk 0:02:49]} 11. h4 {[%clk 0:02:45]}  h5 {[%clk 0:02:47]} 12. Be3 {[%clk 0:02:38]}  Be7 {[%clk 0:02:43]} 13. Nd2 {[%clk 0:02:36]}  Nf8 {[%clk 0:02:42]} 14. Nf5 {[%clk 0:02:33]}  Ne6 {[%clk 0:02:41]} 15. Qf3 {[%clk 0:02:30]}  Bf8 {[%clk 0:02:39]} 16. Qg3 {[%clk 0:02:26]}  Bf7 {[%clk 0:02:36]} 17. Qf3 {[%clk 0:02:16]}  Nd4 {[%clk 0:02:33]} 18. Bxd4 {[%clk 0:02:14]}  cxd4 {[%clk 0:02:33]} 19. a3 {[%clk 0:02:11]}  Qa5 {[%clk 0:02:25]} 20. Ke2 {[%clk 0:02:08]}  Qc3 {[%clk 0:02:19]} 21. Rhc1 {[%clk 0:02:04]}  g6 {[%clk 0:02:14]} 22. Nd6+ {[%clk 0:01:44]}  Ke7 {[%clk 0:01:44]} 23. Nxf7 {[%clk 0:01:39]}  Kxf7 {[%clk 0:01:45]} 24. Nc4 {[%clk 0:01:37]}  Ke7 {[%clk 0:01:05]} 25. Ra2 {[%clk 0:01:26]}  Bh6 {[%clk 0:01:02]} 26. Rd1 {[%clk 0:01:25]}  b5 {[%clk 0:01:01]} 27. Nd2 {[%clk 0:01:23]}  a5 {[%clk 0:00:58]} 28. Nb1 {[%clk 0:01:14]}  Qc5 {[%clk 0:00:58]} 29. Kf1 {[%clk 0:01:14]}  a4 {[%clk 0:00:54]} 30. g3 {[%clk 0:01:11]}  Qd6 {[%clk 0:00:44]} 31. Rb2 {[%clk 0:01:03]}  Qe6 {[%clk 0:00:41]} 32. b4 {[%clk 0:01:02]}  Qg4 {[%clk 0:00:36]} 33. Kg2 {[%clk 0:00:58]}  Rad8 {[%clk 0:00:26]} 34. c4 {[%clk 0:00:49]}  dxc3 {[%clk 0:00:19]} 35. Nxc3 {[%clk 0:00:49]}  Rd6 {[%clk 0:00:19]} 36. Qxg4 {[%clk 0:00:44]}  hxg4 {[%clk 0:00:19]} 37. Kf1 {[%clk 0:00:44]}  Rhd8 {[%clk 0:00:18]} 38. Ke2 {[%clk 0:00:45]}  f5 {[%clk 0:00:19]} 39. exf5 {[%clk 0:00:36]}  gxf5 {[%clk 0:00:20]} 40. Rc2 {[%clk 0:00:37]}  f4 {[%clk 0:00:19]} 41. gxf4 {[%clk 0:00:28]}  exf4 {[%clk 0:00:20]} 42. f3 {[%clk 0:00:27]}  gxf3+ {[%clk 0:00:20]} 43. Kxf3 {[%clk 0:00:27]}  Rxd3+ {[%clk 0:00:20]} 44. Rxd3 {[%clk 0:00:27]}  Rxd3+ {[%clk 0:00:21]} 45. Kg4 {[%clk 0:00:26]}  f3 {[%clk 0:00:18]} 46. Ne4 {[%clk 0:00:24]}  Rxa3 {[%clk 0:00:18]} 47. Rxc6 {[%clk 0:00:23]}  Re3 {[%clk 0:00:14]} 48. Ng3 {[%clk 0:00:19]}  f2 {[%clk 0:00:11]} 49. Nf5+ {[%clk 0:00:19]}  Kd7 {[%clk 0:00:10]} 50. Rd6+ {[%clk 0:00:19]}  Kc7 {[%clk 0:00:10]} 51. Nxe3 {[%clk 0:00:19]}  Kxd6 {[%clk 0:00:09]} 52. Nf1 {[%clk 0:00:17]}  a3 {[%clk 0:00:09]} 53. Kf3 {[%clk 0:00:15]}  a2 {[%clk 0:00:09]} 54. Kxf2 {[%clk 0:00:14]}  a1=Q {[%clk 0:00:09]} 0-1


[Site "https://www.chess.com"]

[Event "Titled Tuesday Blitz September 14 2021"]
[White "Vitiugov, Nikita"]
[Black "Weetik, Vjacheslav"]
[WhiteFideId "4152956"]
[BlackFideId "4153472"]
[WhiteElo "2673"]
[BlackElo "2469"]
[Result "1-0"]
[Round "06"]
[TimeControl "180+1"]
[Date "2021.09.15"]
[WhiteClock "0:00:24"]
[BlackClock "0:00:03"]

1. c4 {[%clk 0:03:00]}  e5 {[%clk 0:02:52]} 2. Nc3 {[%clk 0:02:57]}  Bb4 {[%clk 0:02:52]} 3. Nd5 {[%clk 0:02:57]}  a5 {[%clk 0:02:52]} 4. Nf3 {[%clk 0:02:45]}  d6 {[%clk 0:02:52]} 5. g3 {[%clk 0:02:33]}  c6 {[%clk 0:02:49]} 6. Nxb4 {[%clk 0:02:32]}  axb4 {[%clk 0:02:50]} 7. Bg2 {[%clk 0:02:32]}  f5 {[%clk 0:02:47]} 8. O-O {[%clk 0:02:19]}  Nf6 {[%clk 0:02:47]} 9. b3 {[%clk 0:02:14]}  O-O {[%clk 0:02:41]} 10. d4 {[%clk 0:02:08]}  e4 {[%clk 0:02:40]} 11. Ne1 {[%clk 0:02:08]}  d5 {[%clk 0:02:36]} 12. Nc2 {[%clk 0:02:04]}  Na6 {[%clk 0:01:55]} 13. Bf4 {[%clk 0:01:53]}  Be6 {[%clk 0:01:47]} 14. c5 {[%clk 0:01:50]}  b6 {[%clk 0:01:34]} 15. Bd6 {[%clk 0:01:42]}  Rf7 {[%clk 0:01:32]} 16. Qd2 {[%clk 0:01:42]}  Ne8 {[%clk 0:01:25]} 17. Be5 {[%clk 0:01:34]}  bxc5 {[%clk 0:01:25]} 18. dxc5 {[%clk 0:01:34]}  Nxc5 {[%clk 0:01:25]} 19. Nxb4 {[%clk 0:01:33]}  Qa5 {[%clk 0:01:09]} 20. Qc3 {[%clk 0:01:22]}  Bd7 {[%clk 0:00:53]} 21. Rfc1 {[%clk 0:01:16]}  Ne6 {[%clk 0:00:51]} 22. Nxc6 {[%clk 0:01:15]}  Qxc3 {[%clk 0:00:47]} 23. Rxc3 {[%clk 0:01:14]}  f4 {[%clk 0:00:23]} 24. a4 {[%clk 0:01:09]}  h5 {[%clk 0:00:18]} 25. b4 {[%clk 0:01:02]}  h4 {[%clk 0:00:18]} 26. b5 {[%clk 0:00:58]}  f3 {[%clk 0:00:09]} 27. exf3 {[%clk 0:00:55]}  h3 {[%clk 0:00:06]} 28. Bxh3 {[%clk 0:00:41]}  Ng5 {[%clk 0:00:02]} 29. Bxd7 {[%clk 0:00:40]}  Rxd7 {[%clk 0:00:03]} 30. fxe4 {[%clk 0:00:35]}  dxe4 {[%clk 0:00:03]} 31. Kg2 {[%clk 0:00:33]}  Nf3 {[%clk 0:00:03]} 32. Bf4 {[%clk 0:00:28]}  Nf6 {[%clk 0:00:03]} 33. Ne5 {[%clk 0:00:24]} 1-0


[Site "https://www.chess.com"]

[Event "Titled Tuesday Blitz September 14 2021"]
[White "Andreikin, Dmitry"]
[Black "Vitiugov, Nikita"]
[WhiteFideId "4158814"]
[BlackFideId "4152956"]
[WhiteElo "2736"]
[BlackElo "2673"]
[Result "1-0"]
[Round "07"]
[TimeControl "180+1"]
[Date "2021.09.15"]
[WhiteClock "0:00:40"]
[BlackClock "0:00:03"]

1. d4 {[%clk 0:03:00]}  Nf6 {[%clk 0:02:45]} 2. c4 {[%clk 0:03:00]}  g6 {[%clk 0:02:45]} 3. Nc3 {[%clk 0:03:01]}  Bg7 {[%clk 0:02:45]} 4. e4 {[%clk 0:03:01]}  d6 {[%clk 0:02:45]} 5. h3 {[%clk 0:03:01]}  e5 {[%clk 0:02:44]} 6. dxe5 {[%clk 0:02:55]}  dxe5 {[%clk 0:02:44]} 7. Qxd8+ {[%clk 0:02:56]}  Kxd8 {[%clk 0:02:45]} 8. Nf3 {[%clk 0:02:56]}  Nbd7 {[%clk 0:02:03]} 9. Be3 {[%clk 0:02:53]}  c6 {[%clk 0:02:02]} 10. c5 {[%clk 0:02:52]}  Bf8 {[%clk 0:01:47]} 11. Ng5 {[%clk 0:02:47]}  Ke8 {[%clk 0:01:43]} 12. Bc4 {[%clk 0:02:46]}  Bxc5 {[%clk 0:01:41]} 13. Nxf7 {[%clk 0:02:39]}  Rf8 {[%clk 0:01:18]} 14. Bxc5 {[%clk 0:02:37]}  Nxc5 {[%clk 0:01:19]} 15. Nxe5 {[%clk 0:02:37]}  Nfxe4 {[%clk 0:01:12]} 16. Nxe4 {[%clk 0:02:29]}  Nxe4 {[%clk 0:01:12]} 17. O-O-O {[%clk 0:02:22]}  Rf5 {[%clk 0:00:56]} 18. Nd3 {[%clk 0:01:48]}  Nd6 {[%clk 0:00:35]} 19. Rhe1+ {[%clk 0:01:45]}  Kf8 {[%clk 0:00:35]} 20. Bb3 {[%clk 0:01:44]}  Rf6 {[%clk 0:00:36]} 21. Nc5 {[%clk 0:01:34]}  Nf7 {[%clk 0:00:22]} 22. Ne4 {[%clk 0:01:19]}  Rf4 {[%clk 0:00:13]} 23. g3 {[%clk 0:01:10]}  Rf5 {[%clk 0:00:13]} 24. Bxf7 {[%clk 0:01:04]}  Rxf7 {[%clk 0:00:13]} 25. Rd8+ {[%clk 0:01:03]}  Ke7 {[%clk 0:00:06]} 26. Rh8 {[%clk 0:01:03]}  Kd7 {[%clk 0:00:06]} 27. f4 {[%clk 0:00:54]}  Kc7 {[%clk 0:00:06]} 28. Ng5 {[%clk 0:00:54]}  Rd7 {[%clk 0:00:05]} 29. Ree8 {[%clk 0:00:51]}  b6 {[%clk 0:00:04]} 30. g4 {[%clk 0:00:45]}  c5 {[%clk 0:00:02]} 31. Ne6+ {[%clk 0:00:39]}  Kb7 {[%clk 0:00:02]} 32. f5 {[%clk 0:00:40]}  gxf5 {[%clk 0:00:03]} 33. gxf5 {[%clk 0:00:40]} 1-0


[Site "https://www.chess.com"]

[Event "Titled Tuesday Blitz September 14 2021"]
[White "Bailleau, Gerald"]
[Black "Yaksin, Oleg"]
[WhiteFideId "2019442"]
[BlackFideId "24105880"]
[WhiteElo "2735"]
[BlackElo "2310"]
[Result "0-1"]
[Round "07"]
[TimeControl "180+1"]
[Date "2021.09.15"]
[WhiteClock "0:00:02"]
[BlackClock "0:00:13"]

1. d4 {[%clk 0:02:58]}  Nf6 {[%clk 0:02:58]} 2. c4 {[%clk 0:02:56]}  e6 {[%clk 0:02:58]} 3. Nf3 {[%clk 0:02:56]}  b6 {[%clk 0:02:58]} 4. g3 {[%clk 0:02:55]}  Bb7 {[%clk 0:02:58]} 5. Bg2 {[%clk 0:02:55]}  Be7 {[%clk 0:02:59]} 6. O-O {[%clk 0:02:53]}  O-O {[%clk 0:02:58]} 7. Qc2 {[%clk 0:02:47]}  c5 {[%clk 0:02:56]} 8. d5 {[%clk 0:02:35]}  exd5 {[%clk 0:02:55]} 9. Nh4 {[%clk 0:02:35]}  Bc6 {[%clk 0:02:44]} 10. cxd5 {[%clk 0:02:33]}  Nxd5 {[%clk 0:02:42]} 11. Nf5 {[%clk 0:02:33]}  Nb4 {[%clk 0:02:39]} 12. Qd1 {[%clk 0:02:23]}  Bxg2 {[%clk 0:01:46]} 13. Kxg2 {[%clk 0:02:22]}  Bf6 {[%clk 0:01:23]} 14. Nc3 {[%clk 0:02:07]}  d5 {[%clk 0:01:13]} 15. e4 {[%clk 0:01:32]}  d4 {[%clk 0:01:06]} 16. Nb5 {[%clk 0:01:03]}  a6 {[%clk 0:00:59]} 17. Nbd6 {[%clk 0:01:01]}  g6 {[%clk 0:00:39]} 18. Bh6 {[%clk 0:00:58]}  gxf5 {[%clk 0:00:32]} 19. Nxf5 {[%clk 0:00:52]}  Kh8 {[%clk 0:00:32]} 20. Bxf8 {[%clk 0:00:29]}  Qxf8 {[%clk 0:00:33]} 21. f4 {[%clk 0:00:29]}  Qc8 {[%clk 0:00:20]} 22. a3 {[%clk 0:00:26]}  N4c6 {[%clk 0:00:20]} 23. Qh5 {[%clk 0:00:25]}  Qf8 {[%clk 0:00:18]} 24. e5 {[%clk 0:00:19]}  Bg7 {[%clk 0:00:19]} 25. Rae1 {[%clk 0:00:18]}  Nd7 {[%clk 0:00:17]} 26. g4 {[%clk 0:00:16]}  Re8 {[%clk 0:00:17]} 27. Rf3 {[%clk 0:00:15]}  c4 {[%clk 0:00:17]} 28. Rh3 {[%clk 0:00:15]}  h6 {[%clk 0:00:17]} 29. g5 {[%clk 0:00:16]}  Re6 {[%clk 0:00:16]} 30. Rf1 {[%clk 0:00:12]}  Rg6 {[%clk 0:00:16]} 31. Rff3 {[%clk 0:00:11]}  Kg8 {[%clk 0:00:15]} 32. Rfg3 {[%clk 0:00:11]}  Ndxe5 {[%clk 0:00:13]} 33. fxe5 {[%clk 0:00:11]}  Nxe5 {[%clk 0:00:14]} 34. gxh6 {[%clk 0:00:11]}  Qa8+ {[%clk 0:00:14]} 35. Kf2 {[%clk 0:00:08]}  Nd3+ {[%clk 0:00:14]} 36. Rxd3 {[%clk 0:00:05]}  Qg2+ {[%clk 0:00:14]} 37. Ke1 {[%clk 0:00:05]}  Qg1+ {[%clk 0:00:14]} 38. Kd2 {[%clk 0:00:02]}  Rg2+ {[%clk 0:00:15]} 39. Qe2 {[%clk 0:00:02]}  Rxe2+ {[%clk 0:00:15]} 40. Kxe2 {[%clk 0:00:02]}  cxd3+ {[%clk 0:00:15]} 41. Kxd3 {[%clk 0:00:02]}  Qf1+ {[%clk 0:00:15]} 42. Ke4 {[%clk 0:00:02]}  Qxh3 {[%clk 0:00:16]} 43. hxg7 {[%clk 0:00:03]}  Qg2+ {[%clk 0:00:15]} 44. Kxd4 {[%clk 0:00:03]}  Qg4+ {[%clk 0:00:15]} 45. Ke5 {[%clk 0:00:03]}  Qg5 {[%clk 0:00:15]} 46. h4 {[%clk 0:00:02]}  Qd2 {[%clk 0:00:14]} 47. Kf6 {[%clk 0:00:02]}  Qxb2+ {[%clk 0:00:13]} 48. Ke7 {[%clk 0:00:02]}  Qxa3+ {[%clk 0:00:14]} 49. Kf6 {[%clk 0:00:01]}  Qc3+ {[%clk 0:00:14]} 50. Kg5 {[%clk 0:00:02]}  a5 {[%clk 0:00:14]} 51. h5 {[%clk 0:00:02]}  Qxg7+ {[%clk 0:00:11]} 52. Nxg7 {[%clk 0:00:02]}  Kxg7 {[%clk 0:00:12]} 53. h6+ {[%clk 0:00:02]}  Kh7 {[%clk 0:00:13]} 0-1


[Site "https://www.chess.com"]

[Event "Titled Tuesday Blitz September 14 2021"]
[White "Bortnyk, Olexandr"]
[Black "Lagarde, Maxime"]
[WhiteFideId "14120828"]
[BlackFideId "662399"]
[WhiteElo "2723"]
[BlackElo "2615"]
[Result "0-1"]
[Round "07"]
[TimeControl "180+1"]
[Date "2021.09.15"]
[WhiteClock "0:00:03"]
[BlackClock "0:00:05"]

1. d4 {[%clk 0:03:00]}  d6 {[%clk 0:02:55]} 2. Nc3 {[%clk 0:03:00]}  Nf6 {[%clk 0:02:53]} 3. e4 {[%clk 0:03:00]}  g6 {[%clk 0:02:53]} 4. Bg5 {[%clk 0:02:59]}  Bg7 {[%clk 0:02:53]} 5. Qd2 {[%clk 0:02:59]}  Nc6 {[%clk 0:02:53]} 6. O-O-O {[%clk 0:02:57]}  h6 {[%clk 0:02:52]} 7. Bh4 {[%clk 0:02:57]}  g5 {[%clk 0:02:48]} 8. Bg3 {[%clk 0:02:57]}  Nh5 {[%clk 0:02:48]} 9. Nge2 {[%clk 0:02:45]}  a6 {[%clk 0:02:41]} 10. d5 {[%clk 0:02:25]}  Ne5 {[%clk 0:02:39]} 11. Bxe5 {[%clk 0:02:25]}  Bxe5 {[%clk 0:02:39]} 12. g3 {[%clk 0:02:24]}  b5 {[%clk 0:02:28]} 13. f4 {[%clk 0:02:24]}  Bg7 {[%clk 0:02:25]} 14. Nd4 {[%clk 0:02:24]}  Bd7 {[%clk 0:02:22]} 15. Be2 {[%clk 0:02:21]}  Nf6 {[%clk 0:02:14]} 16. e5 {[%clk 0:02:21]}  b4 {[%clk 0:02:14]} 17. exf6 {[%clk 0:01:54]}  bxc3 {[%clk 0:02:14]} 18. Qxc3 {[%clk 0:01:55]}  Bxf6 {[%clk 0:02:14]} 19. Bh5 {[%clk 0:01:55]}  O-O {[%clk 0:02:09]} 20. h4 {[%clk 0:01:55]}  g4 {[%clk 0:02:10]} 21. f5 {[%clk 0:01:46]}  Bxf5 {[%clk 0:02:01]} 22. Qe3 {[%clk 0:01:40]}  Bh7 {[%clk 0:01:59]} 23. Bxg4 {[%clk 0:01:33]}  c5 {[%clk 0:01:57]} 24. Nc6 {[%clk 0:01:10]}  Qb6 {[%clk 0:01:56]} 25. c3 {[%clk 0:01:07]}  Rab8 {[%clk 0:01:50]} 26. Rh2 {[%clk 0:00:50]}  Qb5 {[%clk 0:01:47]} 27. Nxb8 {[%clk 0:00:28]}  Rxb8 {[%clk 0:01:46]} 28. Rf2 {[%clk 0:00:29]}  Qa4 {[%clk 0:01:39]} 29. Bf5 {[%clk 0:00:10]}  Bxf5 {[%clk 0:01:39]} 30. Rxf5 {[%clk 0:00:10]}  Qxa2 {[%clk 0:01:39]} 31. Rf2 {[%clk 0:00:05]}  Qa1+ {[%clk 0:01:26]} 32. Kd2 {[%clk 0:00:06]}  Rxb2+ {[%clk 0:01:15]} 33. Ke1 {[%clk 0:00:06]}  Bxc3+ {[%clk 0:01:16]} 34. Qxc3 {[%clk 0:00:07]}  Re2+ {[%clk 0:01:16]} 35. Rxe2 {[%clk 0:00:08]}  Qxc3+ {[%clk 0:01:16]} 36. Kf2 {[%clk 0:00:08]}  a5 {[%clk 0:01:08]} 37. Rde1 {[%clk 0:00:09]}  Kf8 {[%clk 0:01:07]} 38. Kg2 {[%clk 0:00:07]}  Qd4 {[%clk 0:01:06]} 39. Rxe7 {[%clk 0:00:06]}  Qxd5+ {[%clk 0:01:06]} 40. Kh2 {[%clk 0:00:05]}  a4 {[%clk 0:01:06]} 41. R1e2 {[%clk 0:00:03]}  Qd3 {[%clk 0:00:57]} 42. Re8+ {[%clk 0:00:02]}  Kg7 {[%clk 0:00:57]} 43. R8e3 {[%clk 0:00:03]}  Qc4 {[%clk 0:00:53]} 44. Rf2 {[%clk 0:00:03]}  d5 {[%clk 0:00:53]} 45. Ra3 {[%clk 0:00:02]}  d4 {[%clk 0:00:50]} 46. Rfa2 {[%clk 0:00:03]}  d3 {[%clk 0:00:40]} 47. Rd2 {[%clk 0:00:03]}  Qb4 {[%clk 0:00:38]} 48. Rdxd3 {[%clk 0:00:04]}  c4 {[%clk 0:00:37]} 49. Rf3 {[%clk 0:00:04]}  h5 {[%clk 0:00:34]} 50. Rfc3 {[%clk 0:00:02]}  Kf6 {[%clk 0:00:32]} 51. Re3 {[%clk 0:00:03]}  Kf5 {[%clk 0:00:28]} 52. Kg2 {[%clk 0:00:03]}  Kg6 {[%clk 0:00:27]} 53. Kh2 {[%clk 0:00:03]}  f5 {[%clk 0:00:25]} 54. Rf3 {[%clk 0:00:03]}  Kf6 {[%clk 0:00:24]} 55. Rae3 {[%clk 0:00:03]}  Qd2+ {[%clk 0:00:21]} 56. Kh3 {[%clk 0:00:03]}  Qd5 {[%clk 0:00:17]} 57. Kh2 {[%clk 0:00:03]}  Qc5 {[%clk 0:00:16]} 58. Rc3 {[%clk 0:00:03]}  Qd4 {[%clk 0:00:15]} 59. Ra3 {[%clk 0:00:03]}  Qd2+ {[%clk 0:00:15]} 60. Kg1 {[%clk 0:00:03]}  Qd1+ {[%clk 0:00:14]} 61. Kh2 {[%clk 0:00:03]}  Ke5 {[%clk 0:00:15]} 62. Rac3 {[%clk 0:00:02]}  Kd4 {[%clk 0:00:14]} 63. Ra3 {[%clk 0:00:03]}  Qb3 {[%clk 0:00:10]} 64. Raxb3 {[%clk 0:00:02]}  axb3 {[%clk 0:00:11]} 65. Rxf5 {[%clk 0:00:02]}  b2 {[%clk 0:00:12]} 66. Rb5 {[%clk 0:00:02]}  c3 {[%clk 0:00:12]} 67. g4 {[%clk 0:00:03]}  hxg4 {[%clk 0:00:11]} 68. h5 {[%clk 0:00:03]}  c2 {[%clk 0:00:12]} 69. Rxb2 {[%clk 0:00:04]}  c1=Q {[%clk 0:00:12]} 70. Rb4+ {[%clk 0:00:04]}  Ke5 {[%clk 0:00:11]} 71. Rxg4 {[%clk 0:00:05]}  Kf5 {[%clk 0:00:11]} 72. Rg3 {[%clk 0:00:05]}  Qf4 {[%clk 0:00:10]} 73. Kg2 {[%clk 0:00:05]}  Qe4+ {[%clk 0:00:10]} 74. Kh2 {[%clk 0:00:06]}  Qe2+ {[%clk 0:00:10]} 75. Kg1 {[%clk 0:00:06]}  Qxh5 {[%clk 0:00:10]} 76. Rg2 {[%clk 0:00:06]}  Qd1+ {[%clk 0:00:10]} 77. Kh2 {[%clk 0:00:07]}  Kf4 {[%clk 0:00:11]} 78. Rf2+ {[%clk 0:00:07]}  Kg4 {[%clk 0:00:11]} 79. Rg2+ {[%clk 0:00:08]}  Kh4 {[%clk 0:00:11]} 80. Rf2 {[%clk 0:00:08]}  Qd6+ {[%clk 0:00:10]} 81. Kg2 {[%clk 0:00:09]}  Qd5+ {[%clk 0:00:10]} 82. Kh2 {[%clk 0:00:09]}  Qe5+ {[%clk 0:00:10]} 83. Kg2 {[%clk 0:00:09]}  Qe3 {[%clk 0:00:10]} 84. Kh1 {[%clk 0:00:07]}  Qe1+ {[%clk 0:00:07]} 85. Kg2 {[%clk 0:00:07]}  Kg4 {[%clk 0:00:07]} 86. Rf1 {[%clk 0:00:04]}  Qe4+ {[%clk 0:00:07]} 87. Kf2 {[%clk 0:00:03]}  Qc2+ {[%clk 0:00:07]} 88. Ke3 {[%clk 0:00:04]}  Qc3+ {[%clk 0:00:07]} 89. Ke2 {[%clk 0:00:04]}  Qc4+ {[%clk 0:00:07]} 90. Kf2 {[%clk 0:00:04]}  Qe4 {[%clk 0:00:03]} 91. Rc1 {[%clk 0:00:02]}  Qf4+ {[%clk 0:00:03]} 92. Ke2 {[%clk 0:00:02]}  Qxc1 {[%clk 0:00:04]} 93. Kd3 {[%clk 0:00:03]}  Qc6 {[%clk 0:00:05]} 0-1


[Site "https://www.chess.com"]

[Event "Titled Tuesday Blitz September 14 2021"]
[White "Chigaev, Maksim"]
[Black "Kobalia, Mikhail"]
[WhiteFideId "4108116"]
[BlackFideId "4119150"]
[WhiteElo "2610"]
[BlackElo "2626"]
[Result "0-1"]
[Round "07"]
[TimeControl "180+1"]
[Date "2021.09.15"]
[WhiteClock "0:00:07"]
[BlackClock "0:01:04"]

1. d4 {[%clk 0:03:00]}  d5 {[%clk 0:02:56]} 2. c4 {[%clk 0:03:01]}  c6 {[%clk 0:02:55]} 3. Nf3 {[%clk 0:02:59]}  Nf6 {[%clk 0:02:54]} 4. g3 {[%clk 0:02:49]}  Bf5 {[%clk 0:02:50]} 5. Nc3 {[%clk 0:02:49]}  e6 {[%clk 0:02:50]} 6. Qb3 {[%clk 0:02:47]}  Qb6 {[%clk 0:02:48]} 7. c5 {[%clk 0:02:47]}  Qc7 {[%clk 0:02:44]} 8. Bf4 {[%clk 0:02:40]}  Qc8 {[%clk 0:02:44]} 9. Bg2 {[%clk 0:02:41]}  h6 {[%clk 0:02:42]} 10. O-O {[%clk 0:02:41]}  Nbd7 {[%clk 0:02:42]} 11. Nd2 {[%clk 0:02:37]}  g5 {[%clk 0:02:37]} 12. Be3 {[%clk 0:02:16]}  Ng4 {[%clk 0:02:37]} 13. h3 {[%clk 0:02:09]}  Nxe3 {[%clk 0:02:36]} 14. fxe3 {[%clk 0:02:10]}  Bg7 {[%clk 0:02:36]} 15. e4 {[%clk 0:01:55]}  Bxd4+ {[%clk 0:02:32]} 16. Kh2 {[%clk 0:01:50]}  Bg6 {[%clk 0:02:17]} 17. exd5 {[%clk 0:01:42]}  cxd5 {[%clk 0:02:07]} 18. e4 {[%clk 0:01:17]}  O-O {[%clk 0:01:42]} 19. exd5 {[%clk 0:01:17]}  Nxc5 {[%clk 0:01:41]} 20. Qb4 {[%clk 0:01:09]}  Bxc3 {[%clk 0:01:33]} 21. bxc3 {[%clk 0:01:00]}  Nd3 {[%clk 0:01:25]} 22. Qd4 {[%clk 0:00:34]}  e5 {[%clk 0:01:20]} 23. Qe3 {[%clk 0:00:26]}  Qxc3 {[%clk 0:01:19]} 24. Ne4 {[%clk 0:00:16]}  Qd4 {[%clk 0:01:19]} 25. Qe2 {[%clk 0:00:14]}  f5 {[%clk 0:01:11]} 26. Nd6 {[%clk 0:00:11]}  e4 {[%clk 0:01:07]} 27. Kh1 {[%clk 0:00:07]}  Qxd5 {[%clk 0:01:04]} 0-1


[Site "https://www.chess.com"]

[Event "Titled Tuesday Blitz September 14 2021"]
[White "Garriga Cazorla, Pere"]
[Black "Djordjevic, Vuk"]
[WhiteFideId "32011601"]
[BlackFideId "902098"]
[WhiteElo "2430"]
[BlackElo "2463"]
[Result "0-1"]
[Round "07"]
[TimeControl "180+1"]
[Date "2021.09.15"]
[WhiteClock "0:00:18"]
[BlackClock "0:00:09"]

1. d4 {[%clk 0:03:00]}  Nf6 {[%clk 0:02:59]} 2. c4 {[%clk 0:03:01]}  e6 {[%clk 0:02:59]} 3. Nc3 {[%clk 0:03:01]}  Bb4 {[%clk 0:02:59]} 4. Qc2 {[%clk 0:03:01]}  O-O {[%clk 0:02:56]} 5. Nf3 {[%clk 0:02:59]}  c5 {[%clk 0:02:55]} 6. dxc5 {[%clk 0:02:58]}  Na6 {[%clk 0:02:53]} 7. g3 {[%clk 0:02:57]}  Nxc5 {[%clk 0:02:53]} 8. Bg2 {[%clk 0:02:58]}  d5 {[%clk 0:02:52]} 9. cxd5 {[%clk 0:02:57]}  Qxd5 {[%clk 0:02:51]} 10. O-O {[%clk 0:02:56]}  Qc4 {[%clk 0:02:51]} 11. Ne5 {[%clk 0:02:40]}  Qa6 {[%clk 0:02:46]} 12. Be3 {[%clk 0:02:31]}  Bd7 {[%clk 0:02:41]} 13. a3 {[%clk 0:02:26]}  Bxc3 {[%clk 0:02:41]} 14. Qxc3 {[%clk 0:02:27]}  Na4 {[%clk 0:02:40]} 15. Qb4 {[%clk 0:02:27]}  Bb5 {[%clk 0:02:35]} 16. b3 {[%clk 0:02:07]}  Nb6 {[%clk 0:02:34]} 17. Bxb7 {[%clk 0:02:02]}  Qxb7 {[%clk 0:02:31]} 18. Qxb5 {[%clk 0:02:03]}  Qe4 {[%clk 0:02:14]} 19. Nf3 {[%clk 0:01:51]}  Nbd5 {[%clk 0:02:06]} 20. Qd3 {[%clk 0:01:40]}  Qxd3 {[%clk 0:01:52]} 21. exd3 {[%clk 0:01:38]}  Rfb8 {[%clk 0:01:53]} 22. b4 {[%clk 0:01:35]}  a5 {[%clk 0:01:53]} 23. Bc5 {[%clk 0:01:32]}  Nd7 {[%clk 0:01:27]} 24. Rfc1 {[%clk 0:01:13]}  axb4 {[%clk 0:01:22]} 25. axb4 {[%clk 0:01:14]}  Rxa1 {[%clk 0:01:16]} 26. Rxa1 {[%clk 0:01:15]}  Nxb4 {[%clk 0:01:16]} 27. Bd6 {[%clk 0:01:10]}  Nc2 {[%clk 0:00:20]} 28. Ra7 {[%clk 0:01:07]}  Rb1+ {[%clk 0:00:19]} 29. Kg2 {[%clk 0:01:07]}  Nb6 {[%clk 0:00:20]} 30. Ng5 {[%clk 0:00:55]}  h6 {[%clk 0:00:16]} 31. Nxf7 {[%clk 0:00:54]}  Nd5 {[%clk 0:00:16]} 32. Ne5 {[%clk 0:00:43]}  Ne1+ {[%clk 0:00:16]} 33. Kh3 {[%clk 0:00:42]}  Rb2 {[%clk 0:00:16]} 34. Bc5 {[%clk 0:00:35]}  Re2 {[%clk 0:00:12]} 35. Bd4 {[%clk 0:00:25]}  Nc2 {[%clk 0:00:11]} 36. Bb2 {[%clk 0:00:25]}  Ncb4 {[%clk 0:00:11]} 37. Ba1 {[%clk 0:00:23]}  Nc2 {[%clk 0:00:11]} 38. f4 {[%clk 0:00:23]}  Nxa1 {[%clk 0:00:04]} 39. Rxa1 {[%clk 0:00:24]}  Ne3 {[%clk 0:00:04]} 40. Rh1 {[%clk 0:00:19]}  Kh7 {[%clk 0:00:04]} 41. Kh4 {[%clk 0:00:18]}  Nf5+ {[%clk 0:00:04]} 42. Kg4 {[%clk 0:00:19]}  Re3 {[%clk 0:00:04]} 43. Ra1 {[%clk 0:00:17]}  Re2 {[%clk 0:00:04]} 44. Rh1 {[%clk 0:00:15]}  Re3 {[%clk 0:00:03]} 45. Rd1 {[%clk 0:00:13]}  Re2 {[%clk 0:00:04]} 46. Nf3 {[%clk 0:00:13]}  Ne3+ {[%clk 0:00:03]} 47. Kh3 {[%clk 0:00:14]}  Nxd1 {[%clk 0:00:04]} 48. Nd4 {[%clk 0:00:12]}  Re3 {[%clk 0:00:04]} 49. Nc6 {[%clk 0:00:13]}  Rxd3 {[%clk 0:00:04]} 50. Ne5 {[%clk 0:00:13]}  Re3 {[%clk 0:00:05]} 51. Kg2 {[%clk 0:00:14]}  Rxe5 {[%clk 0:00:05]} 52. fxe5 {[%clk 0:00:15]}  Ne3+ {[%clk 0:00:06]} 53. Kf3 {[%clk 0:00:15]}  Nd5 {[%clk 0:00:06]} 54. Ke4 {[%clk 0:00:16]}  Kg6 {[%clk 0:00:07]} 55. g4 {[%clk 0:00:16]}  Kg5 {[%clk 0:00:08]} 56. Kf3 {[%clk 0:00:17]}  h5 {[%clk 0:00:07]} 57. gxh5 {[%clk 0:00:17]}  Kxh5 {[%clk 0:00:08]} 58. Kg3 {[%clk 0:00:18]}  Kg5 {[%clk 0:00:09]} 0-1


[Site "https://www.chess.com"]